bitfinex/quotes_SOLUSD_20260310
["timestamp","ask_amount","ask_price","bid_price","bid_amount"]
[1773138534888,2.82189583,87.193,87.171,2.97602617]
[1773138536191,2.82189583,87.193,87.172,11.47157344]
[1773138536395,2.82189583,87.193,87.173,2.97602617]
[1773138537074,2.82189583,87.193,87.172,11.47157344]
[1773138538995,2.82189583,87.193,87.172,14.44759961]
[1773138540195,2.82189583,87.193,87.173,2.97602617]
[1773138541596,2.82189583,87.193,87.175,2.97602617]
[1773138542897,2.82189583,87.193,87.171,2.97602617]
[1773138545911,2.82189583,87.193,87.173,2.88946408]
[1773138546091,3.04207574,87.199,87.173,2.88946408]
[1773138546405,11.46791116,87.2,87.173,2.88946408]
[1773138547000,14.5099869,87.2,87.173,2.88946408]
[1773138547393,3.04207574,87.199,87.173,2.88946408]
[1773138548097,3.04207574,87.199,87.175,2.88946408]
[1773138548299,3.04207574,87.197,87.163,2.88946408]
[1773138548595,3.04207574,87.189,87.163,2.88946408]
[1773138549595,3.04207574,87.189,87.165,2.88946408]
[1773138550607,3.04207574,87.189,87.166,11.47236307]
[1773138551288,0.2,87.21,87.167,2.88946408]
[1773138551289,3.04207574,87.196,87.167,2.88946408]
[1773138552103,3.04207574,87.196,87.166,11.47236307]
[1773138552104,4.04477796,87.2,87.168,2.88946408]
[1773138552303,11.46838915,87.197,87.168,2.88946408]
[1773138553805,11.46838915,87.197,87.17,2.88946408]
[1773138554113,3.04207574,87.196,87.17,2.88946408]
[1773138554407,3.04207574,87.189,87.165,14.36185807]
[1773138554585,3.04207574,87.189,87.166,2.88946408]
[1773138555308,3.04207574,87.187,87.168,2.88946408]
[1773138560895,3.04207574,87.187,87.169,11.47196824]
[1773138561199,3.04207574,87.187,87.169,14.36143232]
[1773138561600,3.04207574,87.185,87.169,2.88946408]
[1773138565213,3.04207574,87.183,87.149,28.68623881]
[1773138565419,3.04207574,87.183,87.151,2.88946408]
[1773138567320,3.04207574,87.177,87.153,2.88946408]
[1773138568924,3.04207574,87.175,87.153,2.88946408]
[1773138569621,11.47104707,87.176,87.154,2.88946408]
[1773138569813,3.04207574,87.179,87.154,2.88946408]
[1773138571707,3.04207574,87.177,87.154,2.88946408]
[1773138573337,3.04207574,87.177,87.142,2.88946408]
[1773138573622,11.47209985,87.168,87.142,2.88946408]
[1773138573830,2.97798048,87.167,87.144,2.77747201]
[1773138574406,2.97798048,87.149,87.131,2.77747201]
[1773138574622,2.97798048,87.149,87.126,2.77747201]
[1773138575411,2.97798048,87.149,87.114,11.47921114]
[1773138575412,7.02275844,87.16,87.131,2.77747201]
[1773138575731,2.97798048,87.158,87.133,2.77747201]
[1773138578215,2.97798048,87.176,87.141,2.77747201]
[1773138578423,7.02275844,87.17,87.141,2.77747201]
[1773138578620,2.97798048,87.169,87.141,2.77747201]
[1773138579631,2.97798048,87.159,87.136,2.77747201]
[1773138581531,2.97798048,87.157,87.136,2.77747201]
[1773138583632,4.04477796,87.17,87.138,2.77747201]
[1773138584139,2.97798048,87.169,87.138,2.77747201]
[1773138584335,45.87445444,87.195,87.137,11.47618118]
[1773138584336,5.99342761,87.2,87.16,4.04477796]
[1773138584552,8.97140809,87.2,87.181,2.77747201]
[1773138584844,8.97140809,87.2,87.137,103.28563066]
[1773138584845,2.97798048,87.189,87.151,2.77747201]
[1773138585021,2.97798048,87.169,87.141,2.77747201]
[1773138585923,2.97798048,87.169,87.143,2.86531073]
[1773138586235,2.9955489,87.189,87.151,2.86531073]
[1773138586438,2.9955489,87.179,87.151,2.86531073]
[1773138588448,2.9955489,87.177,87.152,11.47420598]
[1773138589443,11.47104707,87.176,87.152,11.47420598]
[1773138589646,2.9955489,87.169,87.152,11.47420598]
[1773138591139,2.9955489,87.159,87.133,2.86531073]
[1773138591331,2.9955489,87.15,87.128,2.86531073]
[1773138591535,2.9955489,87.15,87.13,2.86531073]
[1773138591846,2.9955489,87.156,87.13,2.86531073]
[1773138594549,2.9955489,87.165,87.132,2.86531073]
[1773138594752,2.9955489,87.159,87.132,2.86531073]
[1773138595853,2.9955489,87.159,87.133,11.47670802]
[1773138596060,2.9955489,87.159,87.134,2.86531073]
[1773138596635,7.04306036,87.16,87.134,2.86531073]
[1773138596848,2.9955489,87.159,87.134,2.86531073]
[1773138597049,2.9955489,87.158,87.134,2.86531073]
[1773138598745,2.9955489,87.156,87.134,2.86531073]
[1773138599446,2.9955489,87.156,87.127,2.86531073]
[1773138600156,2.9955489,87.149,87.103,2.86531073]
[1773138600361,2.9955489,87.149,87.102,40.18277421]
[1773138600362,2.9955489,87.139,87.105,2.86531073]
[1773138600540,2.9955489,87.159,87.121,2.86531073]
[1773138600739,2.9955489,87.159,87.102,97.58673737]
[1773138600740,2.9955489,87.159,87.133,2.86531073]
[1773138600935,11.47298264,87.162,87.133,2.86531073]
[1773138601259,2.9955489,87.165,87.133,2.86531073]
[1773138601648,2.9955489,87.163,87.133,2.86531073]
[1773138601955,2.9955489,87.177,87.141,2.86531073]
[1773138602253,2.9955489,87.182,87.15,4.04751146]
[1773138602457,2.9955489,87.182,87.151,2.86531073]
[1773138602956,11.47038919,87.181,87.152,11.47420598]
[1773138603252,2.9955489,87.193,87.161,2.86531073]
[1773138603861,4.04751146,87.19,87.161,2.86531073]
[1773138604377,2.9840941,87.188,87.163,2.99709133]
[1773138604671,2.9840941,87.169,87.1,2.99709133]
[1773138604841,4.04751146,87.14,87.101,2.99709133]
[1773138605463,4.04751146,87.15,87.111,2.99709133]
[1773138605652,4.04751146,87.15,87.121,2.99709133]
[1773138606048,7.03160556,87.16,87.131,2.99709133]
[1773138606254,4.04751146,87.15,87.131,2.99709133]
[1773138606948,2.9840941,87.157,87.133,2.99709133]
[1773138608347,11.47280616,87.163,87.133,2.99709133]
[1773138608654,4.04751146,87.16,87.135,2.99709133]
[1773138610549,15.52072323,87.16,87.136,11.47631289]
[1773138610743,15.52072323,87.16,87.137,2.99709133]
[1773138612465,18.50481733,87.16,87.137,2.99709133]
[1773138613783,18.50481733,87.16,87.139,2.99709133]
[1773138614462,7.03160556,87.16,87.139,2.99709133]
[1773138614658,2.9840941,87.16,87.139,2.99709133]
[1773138614859,4.04751146,87.17,87.141,2.99709133]
[1773138615166,2.9840941,87.172,87.141,2.99709133]
[1773138615761,2.9840941,87.172,87.142,11.47552271]
[1773138615969,61.02854029,87.208,87.151,2.99709133]
[1773138615970,2.9840941,87.183,87.151,2.99709133]
[1773138618061,7.03160556,87.18,87.153,2.99709133]
[1773138620476,3.1840941,87.21,87.171,2.99709133]
[1773138620658,2.9840941,87.209,87.181,2.99709133]
[1773138622056,0.2,87.21,87.181,2.99709133]
[1773138622258,0.2,87.21,87.183,2.99709133]
[1773138623763,0.2,87.21,87.191,2.99709133]
[1773138624468,0.2,87.21,87.193,2.99709133]
[1773138626477,0.2,87.21,87.195,2.99709133]
[1773138627573,0.2,87.22,87.201,2.99709133]
[1773138628493,3.1840941,87.22,87.201,2.99709133]
[1773138628675,4.04751146,87.21,87.183,2.99709133]
[1773138628879,4.04751146,87.21,87.185,2.99709133]
[1773138629094,2.9840941,87.216,87.185,2.99709133]
[1773138630167,2.9840941,87.216,87.191,2.99709133]
[1773138633381,2.9840941,87.216,87.193,2.99709133]
[1773138633568,0.2,87.22,87.201,2.83417705]
[1773138634371,0.2,87.22,87.2,4.04751146]
[1773138634372,2.93903611,87.219,87.188,2.83417705]
[1773138634578,2.93903611,87.209,87.179,2.83417705]
[1773138634874,2.93903611,87.209,87.181,2.83417705]
[1773138635070,0.2,87.24,87.161,2.83417705]
[1773138635274,2.93903611,87.266,87.241,2.83417705]
[1773138635475,2.93903611,87.266,87.25,4.04751146]
[1773138635676,2.93903611,87.266,87.243,2.83417705]
[1773138635862,2.93903611,87.259,87.233,11.46355163]
[1773138636064,2.93903611,87.249,87.226,2.83417705]
[1773138636264,2.93903611,87.259,87.231,2.83417705]
[1773138636477,2.93903611,87.249,87.223,2.83417705]
[1773138637780,2.93903611,87.249,87.224,11.46473447]
[1773138637988,2.93903611,87.249,87.224,14.29891152]
[1773138638185,2.93903611,87.249,87.225,2.83417705]
[1773138638400,4.04751146,87.26,87.23,4.04751146]
[1773138638564,3.13903611,87.27,87.241,2.83417705]
[1773138639271,51.66,87.3,87.224,40.12657066]
[1773138639587,0.2,87.32,87.224,40.12657066]
[1773138639588,2.93903611,87.316,87.287,2.83417705]
[1773138639887,2.93903611,87.31,87.287,2.83417705]
[1773138640182,2.93903611,87.31,87.288,11.45632847]
[1773138640383,2.93903611,87.31,87.288,14.29050552]
[1773138640583,2.93903611,87.31,87.289,2.83417705]
[1773138640770,2.93903611,87.319,87.289,2.83417705]
[1773138641289,2.93903611,87.299,87.278,11.45753373]
[1773138641482,2.93903611,87.299,87.274,11.45816623]
[1773138641677,2.93903611,87.289,87.269,11.458732]
[1773138642085,4.04751146,87.28,87.266,2.83417705]
[1773138642268,4.04751146,87.28,87.264,11.45944112]
[1773138642789,2.93903611,87.289,87.264,11.45944112]
[1773138645298,6.98654757,87.29,87.252,2.83417705]
[1773138645506,2.93903611,87.289,87.252,2.83417705]
[1773138649089,2.93903611,87.289,87.254,2.89765167]
[1773138650073,2.93903611,87.289,87.261,2.89765167]
[1773138650572,2.93903611,87.289,87.263,2.89765167]
[1773138650769,2.76234033,87.297,87.263,2.89765167]
[1773138651295,2.76234033,87.307,87.263,2.89765167]
[1773138651475,2.76234033,87.299,87.263,2.89765167]
[1773138653677,2.76234033,87.299,87.247,9.5]
[1773138653678,2.76234033,87.299,87.265,2.89765167]
[1773138653884,2.76234033,87.299,87.271,2.89765167]
[1773138654384,2.76234033,87.289,87.264,11.45947928]
[1773138656095,2.76234033,87.299,87.265,2.89765167]
[1773138656474,2.76234033,87.318,87.27,4.04751146]
[1773138656674,2.76234033,87.309,87.27,4.04751146]
[1773138656896,2.76234033,87.309,87.271,2.89765167]
[1773138657384,4.04751146,87.3,87.271,2.89765167]
[1773138657587,2.76234033,87.299,87.271,2.89765167]
[1773138657894,4.0344435,87.3,87.262,2.89765167]
[1773138657895,2.76234033,87.297,87.262,2.89765167]
[1773138658083,2.76234033,87.289,87.262,2.89765167]
[1773138659692,1e-08,87.32,87.281,2.89765167]
[1773138659893,2.76234033,87.337,87.313,2.89765167]
[1773138660198,2.96234033,87.33,87.306,2.89765167]
[1773138660392,2.76234033,87.319,87.288,2.89765167]
[1773138662590,2.76234033,87.317,87.281,2.89765167]
[1773138662795,4.0344435,87.3,87.281,11.45724728]
[1773138662986,2.76234033,87.299,87.281,11.45724728]
[1773138663700,2.76234033,87.299,87.277,11.45770803]
[1773138664684,2.93209826,87.309,87.279,11.45750982]
[1773138665005,28.63098101,87.318,87.279,11.45750982]
[1773138665006,2.93209826,87.299,87.279,11.45750982]
[1773138666188,2.93209826,87.299,87.279,40.10128438]
[1773138666380,2.93209826,87.299,87.279,11.45750982]
[1773138666796,2.93209826,87.299,87.262,2.82041375]
[1773138667387,4.0344435,87.3,87.262,2.82041375]
[1773138667388,2.93209826,87.298,87.262,2.82041375]
[1773138668908,2.93209826,87.298,87.261,40.10955638]
[1773138668909,2.93209826,87.298,87.264,2.82041375]
[1773138669211,2.93209826,87.289,87.263,40.1086371]
[1773138670411,2.93209826,87.289,87.263,28.6490265]
[1773138670593,2.93209826,87.289,87.258,11.46026725]
[1773138670911,2.93209826,87.287,87.259,2.82041375]
[1773138672609,2.93209826,87.279,87.249,28.65361677]
[1773138672908,4.82477569,87.323,87.244,2.82041375]
[1773138673122,0.2,87.41,87.281,2.82041375]
[1773138673123,2.93209826,87.329,87.281,2.82041375]
[1773138673288,2.93209826,87.329,87.301,2.82041375]
[1773138673691,4.0344435,87.32,87.281,2.82041375]
[1773138673910,2.93209826,87.319,87.281,2.82041375]
[1773138674127,2.93209826,87.309,87.281,2.82041375]
[1773138674407,2.93209826,87.319,87.281,2.82041375]
[1773138674621,2.93209826,87.319,87.245,9.08774912]
[1773138674622,2.93209826,87.329,87.293,2.82041375]
[1773138674792,2.93209826,87.327,87.293,2.82041375]
[1773138677216,2.93209826,87.319,87.292,11.45580351]
[1773138677415,2.93209826,87.319,87.286,2.82041375]
[1773138677416,2.93209826,87.309,87.286,11.45648916]
[1773138679918,2.93209826,87.323,87.291,2.82041375]
[1773138680599,2.93209826,87.319,87.291,2.82041375]
[1773138682799,2.93209826,87.319,87.292,11.45580351]
[1773138683001,2.93209826,87.309,87.292,11.45580351]
[1773138685404,2.93209826,87.311,87.283,2.82041375]
[1773138686302,2.93209826,87.309,87.281,11.45724728]
[1773138686601,2.93209826,87.309,87.282,2.82041375]
[1773138688304,2.93209826,87.309,87.283,11.45698475]
[1773138688927,2.93209826,87.299,87.272,11.45837332]
[1773138689110,2.93209826,87.289,87.262,28.64930329]
[1773138689425,2.93209826,87.289,87.263,11.4596106]
[1773138690407,2.93209826,87.287,87.252,11.46105533]
[1773138690710,2.93209826,87.269,87.241,2.82041375]
[1773138692127,2.93209826,87.269,87.242,40.11829164]
[1773138692631,11.45645972,87.287,87.243,2.82041375]
[1773138692826,10.79954815,87.28,87.243,2.82041375]
[1773138693024,2.93209826,87.279,87.243,2.82041375]
[1773138693831,2.84085534,87.288,87.253,3.00126099]
[1773138694044,2.84085534,87.279,87.253,3.00126099]
[1773138694335,2.84085534,87.279,87.252,11.46105533]
[1773138694719,10.79954815,87.27,87.252,11.46105533]
[1773138694923,2.84085534,87.269,87.252,11.46105533]
[1773138695233,2.84085534,87.259,87.185,45.87899491]
[1773138695424,2.84085534,87.257,87.221,3.00126099]
[1773138696830,2.84085534,87.257,87.223,3.00126099]
[1773138699036,2.84085534,87.249,87.225,3.00126099]
[1773138701030,2.84085534,87.249,87.223,3.00126099]
[1773138702331,10.79954815,87.24,87.223,3.00126099]
[1773138703032,10.79954815,87.24,87.196,45.87366392]
[1773138703033,10.79954815,87.29,87.231,3.00126099]
[1773138703344,2.84085534,87.289,87.225,3.00126099]
[1773138703564,2.84085534,87.269,87.231,3.00126099]
[1773138704221,10.79954815,87.29,87.241,3.00126099]
[1773138704424,10.79954815,87.29,87.24,10.79954815]
[1773138704425,2.84085534,87.289,87.251,3.00126099]
[1773138705256,2.94132217,87.297,87.261,2.95148988]
[1773138705625,10.79954815,87.29,87.261,2.95148988]
[1773138705923,2.94132217,87.296,87.261,2.95148988]
[1773138706136,10.79954815,87.29,87.261,2.95148988]
[1773138707526,2.94132217,87.296,87.263,2.95148988]
[1773138707729,10.79954815,87.3,87.263,2.95148988]
[1773138708138,13.74087032,87.3,87.263,2.95148988]
[1773138709352,2.94132217,87.299,87.263,2.95148988]
[1773138709542,2.94132217,87.298,87.265,2.95148988]
[1773138709734,2.94132217,87.289,87.265,2.95148988]
[1773138710342,11.45094985,87.329,87.265,2.95148988]
[1773138710626,11.45094985,87.329,87.264,40.10817748]
[1773138710627,14.39227202,87.329,87.291,2.95148988]
[1773138710833,2.94132217,87.319,87.291,2.95148988]
[1773138711532,2.94132217,87.319,87.292,11.45580351]
[1773138711739,2.94132217,87.319,87.293,2.95148988]
[1773138712740,2.94132217,87.329,87.293,2.95148988]
[1773138713624,2.94132217,87.329,87.295,2.95148988]
[1773138714851,2.94132217,87.319,87.295,2.95148988]
[1773138715060,2.94132217,87.319,87.294,11.45554104]
[1773138715437,2.94132217,87.309,87.283,11.45688091]
[1773138715638,2.94132217,87.308,87.274,2.95148988]
[1773138715959,2.94132217,87.299,87.271,40.1049604]
[1773138716463,2.94132217,87.299,87.271,43.05645028]
[1773138717773,2.94132217,87.289,87.271,11.45856011]
[1773138719640,2.94132217,87.289,87.265,2.95148988]
[1773138720364,2.94132217,87.279,87.251,11.46118669]
[1773138720566,2.94132217,87.269,87.241,11.46250042]
[1773138721550,2.94132217,87.299,87.242,2.95148988]
[1773138721758,10.80906562,87.29,87.261,2.95148988]
[1773138722655,13.75038779,87.29,87.261,2.95148988]
[1773138722855,2.94132217,87.289,87.261,2.95148988]
[1773138724772,2.77515429,87.279,87.262,11.45974192]
[1773138724972,10.80906562,87.28,87.262,11.45974192]
[1773138726085,13.58421991,87.28,87.262,11.45974192]
[1773138726273,10.80906562,87.27,87.262,11.45974192]
[1773138726471,2.77515429,87.279,87.257,11.46034527]
[1773138726773,2.77515429,87.279,87.253,11.46086444]
[1773138727277,2.77515429,87.279,87.254,2.81952203]
[1773138727767,2.77515429,87.279,87.253,11.46086444]
[1773138728071,2.77515429,87.269,87.248,11.46146761]
[1773138728961,2.77515429,87.259,87.231,11.46381446]
[1773138729164,10.80906562,87.25,87.231,11.46381446]
[1773138729470,13.58421991,87.25,87.231,11.46381446]
[1773138729863,2.77515429,87.249,87.231,11.46381446]
[1773138730068,10.80906562,87.24,87.221,2.81952203]
[1773138730477,2.77515429,87.242,87.221,2.81952203]
[1773138730859,2.77515429,87.239,87.217,28.6639232]
[1773138731066,2.77515429,87.239,87.212,2.81952203]
[1773138732280,10.80906562,87.24,87.212,2.81952203]
[1773138732281,2.77515429,87.232,87.212,2.81952203]
[1773138732582,2.77515429,87.239,87.212,2.81952203]
[1773138734358,2.77515429,87.239,87.213,11.4661805]
[1773138739580,4.0405262,87.26,87.221,2.81952203]
[1773138741483,4.0405262,87.26,87.223,2.81952203]
[1773138742179,2.77515429,87.259,87.223,2.81952203]
[1773138743681,2.77515429,87.258,87.225,2.81952203]
[1773138744186,4.0405262,87.25,87.225,2.81952203]
[1773138745689,2.77515429,87.239,87.204,2.81952203]
[1773138745870,2.77515429,87.239,87.205,2.81952203]
[1773138747884,2.77515429,87.238,87.207,2.81952203]
[1773138748598,2.77515429,87.27,87.21,4.0405262]
[1773138748788,2.77515429,87.249,87.211,2.81952203]
[1773138750884,2.77515429,87.248,87.213,2.81952203]
[1773138751388,2.77515429,87.239,87.213,2.81952203]
[1773138754375,2.88133079,87.245,87.215,2.98070277]
[1773138754901,4.0405262,87.24,87.215,2.98070277]
[1773138755695,2.88133079,87.239,87.216,11.46578609]
[1773138755897,28.65239291,87.253,87.216,11.46578609]
[1773138755898,6.92185699,87.23,87.216,11.46578609]
[1773138756122,2.88133079,87.239,87.216,14.44648886]
[1773138757372,2.88133079,87.239,87.217,2.98070277]
[1773138758389,2.88133079,87.239,87.218,11.46552317]
[1773138758605,4.0405262,87.24,87.219,2.98070277]
[1773138760530,4.0405262,87.24,87.22,11.46526026]
[1773138760705,4.0405262,87.24,87.22,14.44596303]
[1773138761630,4.0405262,87.24,87.221,2.98070277]
[1773138761934,4.0405262,87.24,87.201,28.66939599]
[1773138762231,2.88133079,87.239,87.201,40.13715438]
[1773138764005,2.88133079,87.239,87.204,2.98070277]
[1773138765411,11.4614842,87.249,87.204,2.98070277]
[1773138765412,2.87300968,87.229,87.204,2.98070277]
[1773138766223,4.0405262,87.24,87.206,2.88657584]
[1773138766224,3.03111066,87.239,87.206,2.88657584]
[1773138770028,3.03111066,87.239,87.208,2.88657584]
[1773138773029,3.03111066,87.239,87.21,2.88657584]
[1773138774138,4.0405262,87.24,87.21,2.88657584]
[1773138775249,4.0405262,87.24,87.212,2.88657584]
[1773138776119,6.23689625,87.24,87.212,2.88657584]
[1773138777236,2.19660628,87.239,87.213,40.13163175]
[1773138777441,2.19660628,87.239,87.214,2.88657584]
[1773138781049,11.46289461,87.238,87.215,11.46591756]
[1773138781228,11.46289461,87.238,87.201,28.66923307]
[1773138781229,2.19788653,87.229,87.201,2.88657584]
[1773138782847,2.19788653,87.229,87.202,11.46762688]
[1773138783145,2.19788653,87.229,87.202,14.35420272]
[1773138783347,2.19788653,87.229,87.203,2.88657584]
[1773138785042,2.19788653,87.229,87.205,3.00157775]
[1773138785932,2.20022411,87.219,87.204,11.46736388]
[1773138786176,4.04164682,87.23,87.205,3.00157775]
[1773138786458,6.24187093,87.23,87.205,3.00157775]
[1773138787256,6.24187093,87.23,87.207,3.00157775]
[1773138789756,2.20169487,87.229,87.208,11.4668379]
[1773138789942,2.20169487,87.229,87.209,3.00157775]
[1773138790957,2.20169487,87.229,87.21,11.46657493]
[1773138792358,4.04164682,87.23,87.211,3.00157775]
[1773138793158,2.20275419,87.229,87.212,11.46631197]
[1773138794066,2.20275419,87.229,87.208,3.00157775]
[1773138797064,2.20275419,87.229,87.21,3.00157775]
[1773138798464,11.46301208,87.238,87.212,3.00157775]
[1773138798966,2.20476579,87.237,87.212,3.00157775]
[1773138799153,4.04164682,87.23,87.212,3.00157775]
[1773138799953,4.04164682,87.23,87.214,3.00157775]
[1773138800670,2.20476579,87.237,87.214,3.00157775]
[1773138802978,2.20476579,87.237,87.216,3.00157775]
[1773138805170,2.20664269,87.244,87.218,3.00157775]
[1773138805470,4.04164682,87.24,87.218,3.00157775]
[1773138806471,4.04164682,87.27,87.231,3.06587087]
[1773138806876,4.82477569,87.313,87.24,4.04164682]
[1773138807052,4.04164682,87.27,87.245,3.06587087]
[1773138807257,4.04164682,87.27,87.247,3.06587087]
[1773138808378,4.04164682,87.28,87.251,3.06587087]
[1773138809676,15.49902537,87.28,87.253,3.06587087]
[1773138810174,4.04164682,87.28,87.253,3.06587087]
[1773138811266,11.45750982,87.279,87.253,3.06587087]
[1773138811873,4.04164682,87.28,87.254,11.46079262]
[1773138812076,4.04164682,87.28,87.255,3.06587087]
[1773138815974,4.04164682,87.28,87.219,45.86149306]
[1773138815975,4.04164682,87.29,87.257,3.06587087]
[1773138816569,4.04164682,87.28,87.257,3.06587087]
[1773138816769,4.04164682,87.27,87.257,3.06587087]
[1773138818057,4.04164682,87.28,87.257,3.06587087]
[1773138818680,11.45750982,87.279,87.257,3.06587087]
[1773138819483,4.04164682,87.27,87.257,3.06587087]
[1773138819670,4.04164682,87.27,87.252,3.06587087]
[1773138820072,4.04164682,87.27,87.252,14.5269262]
[1773138820403,4.04164682,87.27,87.253,3.06587087]
[1773138822385,8.08329364,87.26,87.198,3.06587087]
[1773138822694,45.81663889,87.305,87.199,3.06587087]
[1773138822695,4.04164682,87.22,87.199,3.06587087]
[1773138822873,4.04164682,87.24,87.184,3.06587087]
[1773138823075,4.04164682,87.25,87.211,3.06587087]
[1773138823894,4.04164682,87.24,87.211,3.06587087]
[1773138824189,4.04164682,87.25,87.211,3.06587087]
[1773138826088,11.46144941,87.249,87.213,3.06587087]
[1773138826275,4.04164682,87.24,87.213,3.06587087]
[1773138830085,11.46144941,87.249,87.215,3.06587087]
[1773138831994,11.46326997,87.236,87.212,3.06587087]
[1773138832203,4.04164682,87.24,87.212,3.06587087]
[1773138835097,15.50301675,87.25,87.214,3.06587087]
[1773138835402,4.04164682,87.24,87.214,3.06587087]
[1773138837405,4.04164682,87.24,87.216,3.06587087]
[1773138839793,4.04164682,87.25,87.218,3.06587087]
[1773138840107,4.04164682,87.24,87.218,3.06587087]
[1773138840505,4.04164682,87.23,87.213,3.06587087]
[1773138841406,4.04164682,87.24,87.215,3.06587087]
[1773138841710,4.04021143,87.24,87.215,3.06587087]
[1773138843418,11.46276321,87.239,87.217,3.06587087]
[1773138845409,4.04021143,87.24,87.206,3.06587087]
[1773138845410,4.04021143,87.23,87.206,3.06587087]
[1773138845592,4.04021143,87.23,87.208,3.06587087]
[1773138845792,15.50416511,87.23,87.208,3.06587087]
[1773138848014,15.50416511,87.23,87.21,3.06587087]
[1773138851309,4.04021143,87.22,87.193,3.06587087]
[1773138856812,4.04021143,87.23,87.195,3.06587087]
[1773138857812,11.46407731,87.229,87.196,11.46841598]
[1773138858118,11.46407731,87.229,87.197,3.06587087]
[1773138858493,11.46336044,87.235,87.201,3.06587087]
[1773138859814,4.04021143,87.23,87.203,3.06587087]
[1773138860125,4.04021143,87.22,87.203,3.06587087]
[1773138861235,4.04021143,87.22,87.188,3.06587087]
[1773138861723,4.04021143,87.22,87.193,3.06587087]
[1773138863109,4.04021143,87.23,87.193,3.06587087]
[1773138863308,11.46299,87.238,87.201,3.06587087]
[1773138863513,4.04021143,87.23,87.201,3.06587087]
[1773138864411,4.04021143,87.24,87.203,3.06587087]
[1773138866020,15.50288035,87.24,87.205,3.06587087]
[1773138867134,11.46266892,87.24,87.205,3.06587087]
[1773138867318,15.50288035,87.24,87.205,3.06587087]
[1773138868829,4.04021143,87.24,87.207,3.06587087]
[1773138869927,4.04021143,87.24,87.211,3.06587087]
[1773138870505,4.04021143,87.25,87.211,3.06587087]
[1773138870709,4.04021143,87.24,87.213,3.06587087]
[1773138871030,4.04021143,87.23,87.213,3.06587087]
[1773138871411,4.04021143,87.24,87.213,3.06587087]
[1773138873130,4.04021143,87.24,87.214,11.46604902]
[1773138873434,4.04021143,87.24,87.215,3.06587087]
[1773138873622,4.04021143,87.25,87.215,3.06587087]
[1773138873818,4.04021143,87.24,87.215,3.06587087]
[1773138874837,4.04021143,87.24,87.217,3.06587087]
[1773138878034,4.04021143,87.24,87.218,11.46552317]
[1773138878336,4.04021143,87.24,87.219,3.06587087]
[1773138881540,11.46276321,87.239,87.219,3.06587087]
[1773138881738,11.46276321,87.239,87.218,11.46552317]
[1773138882037,4.04021143,87.23,87.203,3.06587087]
[1773138882229,4.04021143,87.22,87.203,3.06587087]
[1773138883016,4.04021143,87.22,87.198,3.06587087]
[1773138884424,4.04021143,87.22,87.2,3.06587087]
[1773138886632,4.04021143,87.22,87.201,11.46775839]
[1773138886933,4.04021143,87.22,87.202,3.06587087]
[1773138889746,3.99021143,87.22,87.202,3.06587087]
[1773138890138,3.99021143,87.22,87.181,9.5]
[1773138890139,4.04021143,87.21,87.181,3.06587087]
[1773138890337,4.04021143,87.21,87.183,3.06587087]
[1773138891728,4.04021143,87.21,87.185,3.06587087]
[1773138892635,11.46670641,87.209,87.185,3.06587087]
[1773138894340,11.46670641,87.209,87.186,11.46973137]
[1773138894541,4.04021143,87.21,87.187,3.06587087]
[1773138896060,4.04021143,87.21,87.188,11.46946827]
[1773138896360,4.04021143,87.21,87.189,3.06587087]
[1773138897862,15.50679884,87.21,87.19,14.53507605]
[1773138899248,15.50679884,87.21,87.173,28.67855971]
[1773138899249,15.50679884,87.21,87.191,3.06587087]
[1773138900158,4.04021143,87.2,87.174,3.06587087]
[1773138900462,4.04021143,87.21,87.174,3.06587087]
[1773138900662,4.04021143,87.22,87.181,3.06587087]
[1773138901579,45.8454972,87.25,87.183,3.06587087]
[1773138901758,4.04295476,87.2,87.178,3.06587087]
[1773138901949,4.04295476,87.21,87.178,3.06587087]
[1773138902762,11.46670641,87.209,87.179,11.47065233]
[1773138902968,11.46670641,87.209,87.18,3.06587087]
[1773138905074,11.46670641,87.209,87.181,11.47038919]
[1773138905366,11.46670641,87.209,87.182,3.06587087]
[1773138906065,4.04295476,87.21,87.182,3.06587087]
[1773138906281,15.5096308,87.21,87.182,3.06587087]
[1773138907867,11.46670641,87.209,87.184,3.06587087]
[1773138909073,4.04295476,87.2,87.184,3.06587087]
[1773138911666,4.04295476,87.2,87.183,11.47012605]
[1773138912184,4.04295476,87.2,87.183,3.06587087]
[1773138914080,4.04295476,87.2,87.184,3.06587087]
[1773138914794,4.04295476,87.19,87.171,3.06587087]
[1773138915093,4.04295476,87.18,87.17,0.1]
[1773138920397,4.04295476,87.19,87.17,3.16587087]
[1773138920611,4.04295476,87.18,87.17,0.1]
[1773138921303,4.04295476,87.18,87.16,0.1]
[1773138921675,6.89981921,87.18,87.16,0.1]
[1773138922076,2.85686445,87.179,87.16,0.1]
[1773138922379,2.85686445,87.179,87.142,9.5]
[1773138923186,2.85686445,87.179,87.144,40.16340769]
[1773138923369,2.85686445,87.179,87.145,3.01028668]
[1773138924575,4.04295476,87.19,87.151,3.01028668]
[1773138924878,2.85686445,87.189,87.151,3.01028668]
[1773138926092,2.85686445,87.189,87.153,3.01028668]
[1773138926890,2.85686445,87.179,87.153,3.01028668]
[1773138929191,2.85686445,87.179,87.155,3.01028668]
[1773138931492,2.85686445,87.178,87.156,11.47367937]